[Event "SS Manhem Chess Week 2022: Goteborg Open"]
[Site "Schackcentrum, Vegagatan 20, Gothenburg, Sweden"]
[Date "2022.08.13"]
[Round "6.7"]
[White "Asbrink, Adam"]
[Black "Wickstrom, Lars"]
[Result "1-0"]
[TimeControl "15 minutes + 5 seconds per move from move one (Round 1 - 4) / 90 minutes + 30 seconds per move from move one (Round 5 - 8)"]
[WhiteFideId "1767410"]
[BlackFideId "1770837"]
[WhiteElo "1977"]
[BlackElo "1753"]

1. d4 {[%clk 01:30:46]} {[%emt 00:00:07]} d5 {[%clk 01:30:59]} {[%emt
00:00:09]} 2. Nc3 {[%clk 01:31:09]} {[%emt 00:00:07]} Bf5 {[%clk 01:30:28]}
{[%emt 00:01:00]} 3. f3 {[%clk 01:31:16]} {[%emt 00:00:23]} Nf6 {[%clk
01:28:27]} {[%emt 00:02:31]} 4. g4 {[%clk 01:30:44]} {[%emt 00:01:02]} Bg6
{[%clk 01:26:44]} {[%emt 00:02:13]} 5. g5 {[%clk 01:29:34]} {[%emt 00:01:40]}
Ng8 {[%clk 01:18:33]} {[%emt 00:08:41]} 6. e4 {[%clk 01:26:36]} {[%emt
00:03:28]} e6 {[%clk 01:18:02]} {[%emt 00:01:01]} 7. exd5 {[%clk 01:01:05]}
{[%emt 00:26:02]} exd5 {[%clk 01:18:03]} {[%emt 00:00:28]} 8. Bd3 {[%clk
01:01:26]} {[%emt 00:00:08]} Bb4 {[%clk 01:15:09]} {[%emt 00:03:25]} 9. f4
{[%clk 01:00:42]} {[%emt 00:01:14]} Bxc3+ {[%clk 01:13:21]} {[%emt 00:02:18]}
10. bxc3 {[%clk 01:01:06]} {[%emt 00:00:06]} Ne7 {[%clk 01:13:44]} {[%emt
00:00:08]} 11. Nf3 {[%clk 01:00:42]} {[%emt 00:00:53]} Nd7 {[%clk 01:08:26]}
{[%emt 00:05:48]} 12. Rb1 {[%clk 01:00:32]} {[%emt 00:00:42]} O-O {[%clk
01:06:56]} {[%emt 00:01:59]} 13. Ba3 {[%clk 00:38:13]} {[%emt 00:22:51]} Re8
{[%clk 01:00:28]} {[%emt 00:06:56]} 14. Kf2 {[%clk 00:37:49]} {[%emt 00:00:53]}
Nf5 {[%clk 00:46:02]} {[%emt 00:14:58]} 15. Re1 {[%clk 00:37:44]} {[%emt
00:00:34]} Nb6 {[%clk 00:41:46]} {[%emt 00:04:46]} 16. Ne5 {[%clk 00:36:16]}
{[%emt 00:01:58]} f6 {[%clk 00:28:48]} {[%emt 00:13:29]} 17. Nxg6 {[%clk
00:35:57]} {[%emt 00:00:49]} hxg6 {[%clk 00:28:31]} {[%emt 00:00:46]} 18. Bxf5
{[%clk 00:35:18]} {[%emt 00:01:10]} gxf5 {[%clk 00:28:10]} {[%emt 00:00:50]} 19.
Qh5 {[%clk 00:35:05]} {[%emt 00:00:43]} fxg5 {[%clk 00:25:31]} {[%emt
00:03:10]} 20. fxg5 {[%clk 00:35:24]} {[%emt 00:00:11]} Nd7 {[%clk 00:24:57]}
{[%emt 00:01:04]} 21. Rxb7 {[%clk 00:29:54]} {[%emt 00:06:00]} Re4 {[%clk
00:23:14]} {[%emt 00:02:12]} 22. Rxe4 {[%clk 00:26:16]} {[%emt 00:04:08]} fxe4
{[%clk 00:22:54]} {[%emt 00:00:50]} 23. Rb5 {[%clk 00:15:35]} {[%emt 00:11:10]}
Nf8 {[%clk 00:16:44]} {[%emt 00:06:40]} 24. Ke1 {[%clk 00:14:19]} {[%emt
00:01:47]} Qd7 {[%clk 00:10:43]} {[%emt 00:06:31]} 25. Rb3 {[%clk 00:11:13]}
{[%emt 00:03:36]} Qf5 {[%clk 00:09:01]} {[%emt 00:02:12]} 26. c4 {[%clk
00:11:05]} {[%emt 00:00:39]} Ng6 {[%clk 00:07:12]} {[%emt 00:02:19]} 27. Qe2
{[%clk 00:03:54]} {[%emt 00:07:40]} Qxg5 {[%clk 00:05:43]} {[%emt 00:01:59]} 28.
Rg3 {[%clk 00:02:43]} {[%emt 00:01:41]} Qf6 {[%clk 00:04:08]} {[%emt 00:02:05]}
29. Qg4 {[%clk 00:02:36]} {[%emt 00:00:38]} Nh4 {[%clk 00:03:25]} {[%emt
00:01:13]} 30. cxd5 {[%clk 00:02:27]} {[%emt 00:00:39]} Nf3+ {[%clk 00:03:41]}
{[%emt 00:00:14]} 31. Ke2 {[%clk 00:01:49]} {[%emt 00:01:08]} Qxd4 {[%clk
00:03:49]} {[%emt 00:00:22]} 32. Qe6+ {[%clk 00:02:08]} {[%emt 00:00:11]} Kh7
{[%clk 00:03:44]} {[%emt 00:00:36]} 33. Rh3+ {[%clk 00:02:31]} {[%emt
00:00:06]} Nh4 {[%clk 00:04:12]} {[%emt 00:00:03]} 34. Rxh4# {[%clk 00:02:58]}
{[%emt 00:00:02]} 1-0

[Event "SS Manhem Chess Week 2022: Goteborg Open"]
[Site "Schackcentrum, Vegagatan 20, Gothenburg, Sweden"]
[Date "2022.08.13"]
[Round "6.8"]
[White "Eriksson, Joel"]
[Black "Imani Lasaki, Hamed"]
[Result "1/2-1/2"]
[TimeControl "15 minutes + 5 seconds per move from move one (Round 1 - 4) / 90 minutes + 30 seconds per move from move one (Round 5 - 8)"]
[WhiteFideId "1729233"]
[BlackFideId "1766970"]
[WhiteElo "1949"]
[BlackElo "1577"]

1. e4 {[%clk 01:30:57]} {[%emt 00:00:01]} e5 {[%clk 01:30:55]} {[%emt
00:00:06]} 2. Bc4 {[%clk 01:31:21]} {[%emt 00:00:06]} Bc5 {[%clk 01:28:13]}
{[%emt 00:03:12]} 3. Nc3 {[%clk 01:31:44]} {[%emt 00:00:07]} Nf6 {[%clk
01:28:05]} {[%emt 00:00:39]} 4. f4 {[%clk 01:31:43]} {[%emt 00:00:30]} d6
{[%clk 01:25:22]} {[%emt 00:03:13]} 5. Nf3 {[%clk 01:31:47]} {[%emt 00:00:27]}
Ng4 {[%clk 01:21:56]} {[%emt 00:03:55]} 6. Qe2 {[%clk 01:29:04]} {[%emt
00:03:13]} O-O {[%clk 01:19:49]} {[%emt 00:02:38]} 7. h3 {[%clk 01:24:42]}
{[%emt 00:04:51]} Nf6 {[%clk 01:20:02]} {[%emt 00:00:18]} 8. d3 {[%clk
01:23:48]} {[%emt 00:01:23]} Nh5 {[%clk 01:13:57]} {[%emt 00:06:35]} 9. Ng5
{[%clk 01:22:48]} {[%emt 00:01:31]} Ng3 {[%clk 01:10:11]} {[%emt 00:04:15]} 10.
Qf3 {[%clk 01:22:55]} {[%emt 00:00:22]} Nxh1 {[%clk 01:08:23]} {[%emt
00:02:19]} 11. Qh5 {[%clk 01:23:10]} {[%emt 00:00:15]} h6 {[%clk 01:08:15]}
{[%emt 00:00:38]} 12. Nxf7 {[%clk 01:11:33]} {[%emt 00:12:07]} Rxf7 {[%clk
01:05:16]} {[%emt 00:03:28]} 13. Bxf7+ {[%clk 01:11:46]} {[%emt 00:00:18]} Kh8
{[%clk 01:02:13]} {[%emt 00:03:32]} 14. fxe5 {[%clk 00:58:38]} {[%emt
00:13:39]} Bf2+ {[%clk 00:57:30]} {[%emt 00:05:13]} 15. Kd1 {[%clk 00:58:55]}
{[%emt 00:00:13]} Qh4 {[%clk 00:57:51]} {[%emt 00:00:09]} 16. Qg6 {[%clk
00:58:05]} {[%emt 00:01:20]} Nc6 {[%clk 00:46:01]} {[%emt 00:12:20]} 17. Bd5
{[%clk 00:54:06]} {[%emt 00:04:29]} Ne7 {[%clk 00:36:57]} {[%emt 00:09:34]} 18.
Qf7 {[%clk 00:50:05]} {[%emt 00:04:32]} Bg3 {[%clk 00:30:39]} {[%emt 00:06:47]}
19. Be3 {[%clk 00:48:20]} {[%emt 00:02:16]} Bxe5 {[%clk 00:28:01]} {[%emt
00:03:08]} 20. d4 {[%clk 00:41:21]} {[%emt 00:07:28]} Nxd5 {[%clk 00:21:41]}
{[%emt 00:06:50]} 21. Nxd5 {[%clk 00:41:11]} {[%emt 00:00:40]} Bf6 {[%clk
00:19:26]} {[%emt 00:02:45]} 22. Kd2 {[%clk 00:40:18]} {[%emt 00:01:23]} Ng3
{[%clk 00:18:05]} {[%emt 00:01:51]} 23. Qe8+ {[%clk 00:38:14]} {[%emt
00:02:34]} Kh7 {[%clk 00:18:04]} {[%emt 00:00:30]} 24. Nf4 {[%clk 00:38:14]}
{[%emt 00:00:30]} Qg5 {[%clk 00:14:20]} {[%emt 00:04:15]} 25. h4 {[%clk
00:32:37]} {[%emt 00:06:08]} Qg4 {[%clk 00:13:36]} {[%emt 00:01:14]} 26. h5
{[%clk 00:26:48]} {[%emt 00:06:18]} Bxd4 {[%clk 00:08:17]} {[%emt 00:03:49]} 27.
Qg6+ {[%clk 00:26:29]} {[%emt 00:02:50]} Qxg6 {[%clk 00:08:41]} {[%emt
00:00:05]} 28. hxg6+ {[%clk 00:26:50]} {[%emt 00:00:09]} Kg8 {[%clk 00:08:34]}
{[%emt 00:00:37]} 29. Bxd4 {[%clk 00:27:13]} {[%emt 00:00:07]} Nxe4+ {[%clk
00:08:46]} {[%emt 00:00:18]} 30. Ke3 {[%clk 00:23:59]} {[%emt 00:03:43]} Ng3
{[%clk 00:08:04]} {[%emt 00:01:13]} 31. Kf3 {[%clk 00:23:00]} {[%emt 00:01:30]}
Nf5 {[%clk 00:08:20]} {[%emt 00:00:13]} 32. Bc3 {[%clk 00:22:41]} {[%emt
00:00:50]} Bd7 {[%clk 00:08:38]} {[%emt 00:00:11]} 33. Re1 {[%clk 00:21:44]}
{[%emt 00:01:27]} Re8 {[%clk 00:07:24]} {[%emt 00:01:45]} 34. Rxe8+ {[%clk
00:20:23]} {[%emt 00:01:50]} Bxe8 {[%clk 00:07:52]} {[%emt 00:00:02]} 35. Ne6
{[%clk 00:20:15]} {[%emt 00:00:37]} Nh4+ {[%clk 00:07:20]} {[%emt 00:01:02]} 36.
Kg3 {[%clk 00:19:33]} {[%emt 00:01:12]} Nf5+ {[%clk 00:07:05]} {[%emt
00:00:45]} 37. Kf4 {[%clk 00:19:36]} {[%emt 00:00:27]} Bxg6 {[%clk 00:07:16]}
{[%emt 00:00:19]} 38. Nxc7 {[%clk 00:19:39]} {[%emt 00:00:27]} a6 {[%clk
00:07:01]} {[%emt 00:00:45]} 39. Nd5 {[%clk 00:16:00]} {[%emt 00:04:09]} Kf7
{[%clk 00:06:01]} {[%emt 00:01:31]} 40. g4 {[%clk 00:15:01]} {[%emt 00:01:28]}
Nh4 {[%clk 00:05:02]} {[%emt 00:01:29]} 41. Ne3 {[%clk 00:11:33]} {[%emt
00:03:58]} Bh7 {[%clk 00:04:53]} {[%emt 00:00:39]} 42. Kg3 {[%clk 00:11:16]}
{[%emt 00:00:46]} Ng6 {[%clk 00:04:39]} {[%emt 00:00:45]} 43. Nf5 {[%clk
00:11:07]} {[%emt 00:00:40]} Ne5 {[%clk 00:04:28]} {[%emt 00:00:41]} 44. Nxd6+
{[%clk 00:11:13]} {[%emt 00:00:23]} Ke6 {[%clk 00:04:33]} {[%emt 00:00:25]} 45.
Nxb7 {[%clk 00:11:11]} {[%emt 00:00:32]} Bxc2 {[%clk 00:04:30]} {[%emt
00:00:33]} 46. Nc5+ {[%clk 00:11:00]} {[%emt 00:00:40]} Kd5 {[%clk 00:04:36]}
{[%emt 00:00:25]} 47. Nxa6 {[%clk 00:11:03]} {[%emt 00:00:27]} Bb1 {[%clk
00:04:33]} {[%emt 00:00:33]} 48. a3 {[%clk 00:10:58]} {[%emt 00:00:36]} g6
{[%clk 00:04:43]} {[%emt 00:00:19]} 1/2-1/2

[Event "SS Manhem Chess Week 2022: Goteborg Open"]
[Site "Schackcentrum, Vegagatan 20, Gothenburg, Sweden"]
[Date "2022.08.13"]
[Round "6.9"]
[White "Johansson, Jan"]
[Black "Ottgard, Andreas"]
[Result "0-1"]
[TimeControl "15 minutes + 5 seconds per move from move one (Round 1 - 4) / 90 minutes + 30 seconds per move from move one (Round 5 - 8)"]
[WhiteFideId "1747568"]
[BlackFideId "1730592"]
[WhiteElo "1666"]
[BlackElo "1883"]

1. d4 {[%clk 01:30:57]} {[%emt 00:00:03]} Nf6 {[%clk 01:30:51]} {[%emt
00:00:09]} 2. Bf4 {[%clk 01:31:20]} {[%emt 00:00:07]} c5 {[%clk 01:30:40]}
{[%emt 00:00:40]} 3. d5 {[%clk 01:30:18]} {[%emt 00:01:32]} d6 {[%clk
01:30:43]} {[%emt 00:00:27]} 4. c4 {[%clk 01:29:56]} {[%emt 00:00:54]} e6
{[%clk 01:26:15]} {[%emt 00:04:57]} 5. Nc3 {[%clk 01:29:40]} {[%emt 00:00:46]}
exd5 {[%clk 01:26:20]} {[%emt 00:00:24]} 6. cxd5 {[%clk 01:29:22]} {[%emt
00:00:50]} g6 {[%clk 01:25:57]} {[%emt 00:00:52]} 7. e4 {[%clk 01:28:20]}
{[%emt 00:01:31]} Bg7 {[%clk 01:25:32]} {[%emt 00:00:55]} 8. Nf3 {[%clk
01:26:21]} {[%emt 00:02:30]} O-O {[%clk 01:25:00]} {[%emt 00:01:01]} 9. h3
{[%clk 01:25:12]} {[%emt 00:01:39]} Na6 {[%clk 01:18:42]} {[%emt 00:06:49]} 10.
Bd3 {[%clk 01:21:58]} {[%emt 00:03:44]} Nc7 {[%clk 01:17:27]} {[%emt 00:01:45]}
11. O-O {[%clk 01:21:55]} {[%emt 00:00:32]} a6 {[%clk 01:16:07]} {[%emt
00:01:51]} 12. a4 {[%clk 01:21:31]} {[%emt 00:00:54]} Rb8 {[%clk 01:14:35]}
{[%emt 00:02:02]} 13. a5 {[%clk 01:17:25]} {[%emt 00:04:36]} b5 {[%clk
01:11:03]} {[%emt 00:04:02]} 14. axb6 {[%clk 01:16:48]} {[%emt 00:01:07]} Rxb6
{[%clk 01:11:24]} {[%emt 00:00:09]} 15. Qc2 {[%clk 01:15:49]} {[%emt 00:01:28]}
Nb5 {[%clk 00:57:55]} {[%emt 00:13:59]} 16. Ne2 {[%clk 01:12:36]} {[%emt
00:03:43]} Nd7 {[%clk 00:53:01]} {[%emt 00:05:24]} 17. Rfe1 {[%clk 01:07:04]}
{[%emt 00:06:02]} Re8 {[%clk 00:47:57]} {[%emt 00:05:34]} 18. Rab1 {[%clk
01:06:45]} {[%emt 00:00:49]} Ne5 {[%clk 00:39:55]} {[%emt 00:08:33]} 19. Nxe5
{[%clk 01:03:59]} {[%emt 00:03:15]} Bxe5 {[%clk 00:40:09]} {[%emt 00:00:16]} 20.
Bd2 {[%clk 00:54:25]} {[%emt 00:10:05]} Rb8 {[%clk 00:35:14]} {[%emt 00:05:24]}
21. Qc4 {[%clk 00:50:57]} {[%emt 00:03:58]} Bd7 {[%clk 00:32:06]} {[%emt
00:03:38]} 22. Qa2 {[%clk 00:46:59]} {[%emt 00:04:29]} Nc7 {[%clk 00:29:10]}
{[%emt 00:03:26]} 23. f4 {[%clk 00:39:56]} {[%emt 00:07:33]} Bg7 {[%clk
00:28:59]} {[%emt 00:00:41]} 24. b4 {[%clk 00:37:44]} {[%emt 00:02:42]} Bb5
{[%clk 00:18:37]} {[%emt 00:10:52]} 25. Bxb5 {[%clk 00:36:40]} {[%emt
00:01:34]} axb5 {[%clk 00:18:41]} {[%emt 00:00:25]} 26. Qc2 {[%clk 00:30:27]}
{[%emt 00:06:44]} Qe7 {[%clk 00:13:33]} {[%emt 00:05:38]} 27. Ng3 {[%clk
00:28:44]} {[%emt 00:02:12]} Bd4+ {[%clk 00:12:08]} {[%emt 00:01:55]} 28. Kh2
{[%clk 00:27:43]} {[%emt 00:01:32]} Bf2 {[%clk 00:10:45]} {[%emt 00:01:52]} 29.
Re2 {[%clk 00:25:43]} {[%emt 00:02:31]} Bxg3+ {[%clk 00:10:52]} {[%emt
00:00:24]} 30. Kxg3 {[%clk 00:26:05]} {[%emt 00:00:06]} Nxd5 {[%clk 00:11:01]}
{[%emt 00:00:22]} 31. bxc5 {[%clk 00:22:12]} {[%emt 00:04:23]} dxc5 {[%clk
00:10:54]} {[%emt 00:00:37]} 32. Qd3 {[%clk 00:21:16]} {[%emt 00:01:25]} Nc7
{[%clk 00:09:34]} {[%emt 00:01:50]} 33. Ba5 {[%clk 00:20:32]} {[%emt 00:01:14]}
Ne6 {[%clk 00:08:33]} {[%emt 00:01:31]} 34. Bc3 {[%clk 00:18:25]} {[%emt
00:02:37]} b4 {[%clk 00:08:42]} {[%emt 00:00:22]} 35. Bb2 {[%clk 00:16:35]}
{[%emt 00:02:20]} g5 {[%clk 00:02:51]} {[%emt 00:06:21]} 36. Be5 {[%clk
00:12:00]} {[%emt 00:05:05]} Nxf4 {[%clk 00:02:55]} {[%emt 00:00:25]} 37. Bxf4
{[%clk 00:12:03]} {[%emt 00:00:27]} gxf4+ {[%clk 00:03:21]} {[%emt 00:00:04]}
38. Kxf4 {[%clk 00:12:17]} {[%emt 00:00:16]} Qh4+ {[%clk 00:02:36]} {[%emt
00:01:16]} 39. Kf3 {[%clk 00:12:14]} {[%emt 00:00:33]} Rb6 {[%clk 00:02:01]}
{[%emt 00:01:04]} 40. e5 {[%clk 00:09:42]} {[%emt 00:03:02]} Rg6 {[%clk
00:01:56]} {[%emt 00:00:35]} 41. Qf5 {[%clk 00:05:59]} {[%emt 00:04:14]} Rg3+
{[%clk 00:01:52]} {[%emt 00:00:33]} 42. Kf2 {[%clk 00:06:03]} {[%emt 00:00:26]}
Rg5+ {[%clk 00:02:08]} {[%emt 00:00:14]} 0-1

[Event "SS Manhem Chess Week 2022: Goteborg Open"]
[Site "Schackcentrum, Vegagatan 20, Gothenburg, Sweden"]
[Date "2022.08.13"]
[Round "6.10"]
[White "Persson, Sebastian"]
[Black "Mohammed, Safian Haj"]
[Result "1/2-1/2"]
[TimeControl "15 minutes + 5 seconds per move from move one (Round 1 - 4) / 90 minutes + 30 seconds per move from move one (Round 5 - 8)"]
[WhiteFideId "1764187"]
[BlackFideId "1729276"]
[WhiteElo "1631"]
[BlackElo "1794"]

1. d4 {[%clk 01:30:56]} {[%emt 00:00:03]} Nf6 {[%clk 01:30:38]} {[%emt
00:00:23]} 2. c4 {[%clk 01:31:17]} {[%emt 00:00:08]} e5 {[%clk 01:28:27]}
{[%emt 00:02:41]} 3. dxe5 {[%clk 01:30:32]} {[%emt 00:01:15]} Ng4 {[%clk
01:28:49]} {[%emt 00:00:07]} 4. Nf3 {[%clk 01:30:18]} {[%emt 00:00:45]} Bc5
{[%clk 01:28:45]} {[%emt 00:00:33]} 5. e3 {[%clk 01:29:48]} {[%emt 00:01:00]}
Nc6 {[%clk 01:27:25]} {[%emt 00:01:51]} 6. Be2 {[%clk 01:28:20]} {[%emt
00:01:58]} Ngxe5 {[%clk 01:24:33]} {[%emt 00:03:22]} 7. Nxe5 {[%clk 01:22:30]}
{[%emt 00:06:19]} Nxe5 {[%clk 01:24:33]} {[%emt 00:00:31]} 8. a3 {[%clk
01:22:38]} {[%emt 00:00:21]} a5 {[%clk 01:23:58]} {[%emt 00:01:05]} 9. O-O
{[%clk 01:22:38]} {[%emt 00:00:30]} d6 {[%clk 01:23:20]} {[%emt 00:01:07]} 10.
Qc2 {[%clk 01:21:42]} {[%emt 00:01:28]} O-O {[%clk 01:19:05]} {[%emt 00:04:44]}
11. Nd2 {[%clk 01:19:59]} {[%emt 00:02:14]} Be6 {[%clk 01:13:44]} {[%emt
00:05:50]} 12. b3 {[%clk 01:15:03]} {[%emt 00:05:26]} f5 {[%clk 01:05:42]}
{[%emt 00:08:33]} 13. Nf3 {[%clk 01:08:52]} {[%emt 00:06:41]} Qe7 {[%clk
01:03:04]} {[%emt 00:03:08]} 14. Bb2 {[%clk 01:08:36]} {[%emt 00:00:46]} Bd7
{[%clk 01:01:30]} {[%emt 00:02:04]} 15. Nd4 {[%clk 01:04:52]} {[%emt 00:04:13]}
Rae8 {[%clk 00:55:47]} {[%emt 00:06:13]} 16. Qc3 {[%clk 00:59:44]} {[%emt
00:05:39]} Bb6 {[%clk 00:51:39]} {[%emt 00:04:38]} 17. Rae1 {[%clk 00:58:20]}
{[%emt 00:01:53]} Qf6 {[%clk 00:46:03]} {[%emt 00:06:06]} 18. Bd1 {[%clk
00:54:38]} {[%emt 00:04:12]} Re7 {[%clk 00:42:46]} {[%emt 00:03:48]} 19. b4
{[%clk 00:52:21]} {[%emt 00:02:47]} axb4 {[%clk 00:42:49]} {[%emt 00:00:28]} 20.
axb4 {[%clk 00:52:32]} {[%emt 00:00:19]} c5 {[%clk 00:42:08]} {[%emt 00:01:10]}
21. Nf3 {[%clk 00:43:22]} {[%emt 00:09:39]} Qg6 {[%clk 00:39:00]} {[%emt
00:03:37]} 22. Nxe5 {[%clk 00:36:30]} {[%emt 00:07:22]} dxe5 {[%clk 00:39:01]}
{[%emt 00:00:30]} 23. b5 {[%clk 00:32:20]} {[%emt 00:04:40]} Ra8 {[%clk
00:36:47]} {[%emt 00:02:44]} 24. Qb3 {[%clk 00:30:57]} {[%emt 00:01:53]} h5
{[%clk 00:32:14]} {[%emt 00:05:03]} 25. Bc2 {[%clk 00:29:06]} {[%emt 00:02:21]}
h4 {[%clk 00:32:04]} {[%emt 00:00:40]} 26. h3 {[%clk 00:28:04]} {[%emt
00:01:32]} Rf8 {[%clk 00:24:34]} {[%emt 00:07:58]} 27. Rd1 {[%clk 00:25:27]}
{[%emt 00:03:08]} Bc8 {[%clk 00:22:34]} {[%emt 00:02:31]} 28. Rd2 {[%clk
00:20:23]} {[%emt 00:05:34]} Bc7 {[%clk 00:21:32]} {[%emt 00:01:31]} 29. Rfd1
{[%clk 00:17:42]} {[%emt 00:03:12]} b6 {[%clk 00:21:27]} {[%emt 00:00:35]} 30.
e4 {[%clk 00:12:55]} {[%emt 00:05:16]} f4 {[%clk 00:18:08]} {[%emt 00:03:49]}
31. Qf3 {[%clk 00:12:22]} {[%emt 00:01:03]} Be6 {[%clk 00:16:03]} {[%emt
00:02:35]} 32. Bb3 {[%clk 00:11:46]} {[%emt 00:01:08]} Qf7 {[%clk 00:14:59]}
{[%emt 00:01:34]} 33. Rc2 {[%clk 00:09:15]} {[%emt 00:03:00]} g5 {[%clk
00:15:20]} {[%emt 00:00:10]} 34. Rd3 {[%clk 00:08:20]} {[%emt 00:01:25]} Qg7
{[%clk 00:15:25]} {[%emt 00:00:24]} 35. Qe2 {[%clk 00:07:43]} {[%emt 00:01:08]}
g4 {[%clk 00:15:18]} {[%emt 00:00:36]} 36. hxg4 {[%clk 00:08:01]} {[%emt
00:00:13]} Bxg4 {[%clk 00:15:29]} {[%emt 00:00:19]} 37. f3 {[%clk 00:08:24]}
{[%emt 00:00:07]} Be6 {[%clk 00:15:05]} {[%emt 00:00:53]} 38. Kf1 {[%clk
00:08:07]} {[%emt 00:00:48]} h3 {[%clk 00:14:26]} {[%emt 00:01:10]} 39. gxh3
{[%clk 00:07:44]} {[%emt 00:00:53]} Bxh3+ {[%clk 00:14:48]} {[%emt 00:00:07]}
40. Ke1 {[%clk 00:07:28]} {[%emt 00:00:45]} Rf6 {[%clk 00:13:19]} {[%emt
00:02:00]} 41. Kd2 {[%clk 00:02:07]} {[%emt 00:05:51]} Rg6 {[%clk 00:13:18]}
{[%emt 00:00:30]} 42. Kc3 {[%clk 00:02:31]} {[%emt 00:00:07]} Rg2 {[%clk
00:09:09]} {[%emt 00:04:38]} 43. Qd1 {[%clk 00:02:39]} {[%emt 00:00:23]} Rg1
{[%clk 00:09:24]} {[%emt 00:00:14]} 44. Qd2 {[%clk 00:02:39]} {[%emt 00:00:30]}
Rg2 {[%clk 00:04:38]} {[%emt 00:05:16]} 45. Qd1 {[%clk 00:02:52]} {[%emt
00:00:18]} Rg1 {[%clk 00:03:17]} {[%emt 00:01:49]} 46. Qd2 {[%clk 00:02:52]}
{[%emt 00:00:31]} Qf8 {[%clk 00:02:14]} {[%emt 00:01:33]} 47. Qh2 {[%clk
00:02:27]} {[%emt 00:00:55]} Rg3 {[%clk 00:02:32]} {[%emt 00:00:12]} 48. Rf2
{[%clk 00:02:18]} {[%emt 00:00:39]} Qa8 {[%clk 00:02:48]} {[%emt 00:00:15]} 49.
Rd1 {[%clk 00:02:03]} {[%emt 00:00:45]} Qa5+ {[%clk 00:02:54]} {[%emt
00:00:24]} 50. Kc2 {[%clk 00:02:26]} {[%emt 00:00:07]} Qa8 {[%clk 00:02:51]}
{[%emt 00:00:33]} 51. Qh1 {[%clk 00:02:15]} {[%emt 00:00:40]} Reg7 {[%clk
00:01:52]} {[%emt 00:01:29]} 52. Rh2 {[%clk 00:01:55]} {[%emt 00:00:50]} Qc8
{[%clk 00:01:35]} {[%emt 00:00:47]} 53. Bc3 {[%clk 00:00:56]} {[%emt 00:01:29]}
Qe6 {[%clk 00:01:50]} {[%emt 00:00:15]} 54. Ra1 {[%clk 00:00:49]} {[%emt
00:00:37]} Qh6 {[%clk 00:01:09]} {[%emt 00:01:10]} 55. Kb2 {[%clk 00:00:40]}
{[%emt 00:00:40]} Rg2+ {[%clk 00:01:29]} {[%emt 00:00:10]} 56. Bc2 {[%clk
00:00:53]} {[%emt 00:00:17]} Rxh2 {[%clk 00:01:34]} {[%emt 00:00:25]} 57. Qxh2
{[%clk 00:01:22]} Rg3 {[%emt 00:01:17]} 58. Ra8+ {[%clk 00:01:22]} Kf7 {[%clk
00:01:04]} {[%emt 00:00:42]} 59. Qe2 {[%clk 00:00:48]} {[%emt 00:01:04]} Qd6
{[%clk 00:00:40]} {[%emt 00:00:54]} 60. Qd1 {[%clk 00:00:42]} {[%emt 00:00:36]}
Ke7 {[%clk 00:00:45]} {[%emt 00:00:25]} 61. Rh8 {[%clk 00:00:54]} {[%emt
00:00:18]} Qxd1 {[%clk 00:01:01]} {[%emt 00:00:14]} 62. Bxd1 {[%clk 00:01:22]}
{[%emt 00:00:02]} Be6 {[%clk 00:01:07]} {[%emt 00:00:25]} 63. Rh7+ {[%clk
00:01:17]} {[%emt 00:00:35]} Kd8 {[%clk 00:01:30]} {[%emt 00:00:06]} 64. Rh8+
{[%clk 00:01:15]} {[%emt 00:00:46]} Ke7 {[%clk 00:01:46]} {[%emt 00:00:13]} 65.
Rh7+ {[%clk 00:01:26]} {[%emt 00:00:19]} Bf7 {[%clk 00:00:57]} {[%emt
00:01:19]} 66. Rh2 {[%clk 00:01:42]} {[%emt 00:00:14]} Bxc4 {[%clk 00:01:04]}
{[%emt 00:00:24]} 67. Rh5 {[%clk 00:01:37]} {[%emt 00:00:31]} Kf6 {[%clk
00:01:10]} {[%emt 00:00:27]} 68. Rh6+ {[%clk 00:01:10]} {[%emt 00:00:56]} Kg7
{[%clk 00:01:13]} {[%emt 00:00:27]} 69. Rc6 {[%clk 00:01:16]} {[%emt 00:00:25]}
Bd8 {[%clk 00:00:36]} {[%emt 00:01:08]} 70. Bxe5+ {[%clk 00:01:41]} {[%emt
00:00:05]} Kf7 {[%clk 00:00:50]} {[%emt 00:00:14]} 1/2-1/2